bitfinex/quotes_ETHUSD_20240621
["timestamp","ask_amount","ask_price","bid_price","bid_amount"]
[1718957160300,2.58386184,3486.3,3485.2,0.03074293]
[1718957160503,5.08711535,3486.2,3485.2,0.03074293]
[1718957160672,0.49688455,3486.1,3485.2,0.03074293]
[1718957160869,0.49693131,3486.1,3484.9,3.5417]
[1718957161073,0.49693131,3486.7,3485.3,0.02994778]
[1718957161301,0.49693131,3486.7,3484.9,3.5417]
[1718957161302,3.2506694,3486.6,3484.9,3.5417]
[1718957161515,6.19760071,3486.5,3484.9,3.5417]
[1718957161844,3.74760071,3486.4,3484.9,3.5417]
[1718957162048,6.19760071,3486.3,3484.9,3.5417]
[1718957162220,2.58411742,3486.2,3484.9,3.5417]
[1718957162547,5.58411742,3486.1,3484.9,3.5417]
[1718957162703,5.58411742,3486.1,3484.9,3.88173722]
[1718957162704,0.49693131,3486.0,3484.9,3.88173722]
[1718957163142,2.42385896,3487.5,3485.1,3.5152]
[1718957163143,0.49693131,3487.4,3485.1,3.5152]
[1718957163356,0.61314838,3487.3,3485.3,3.5152]
[1718957163705,0.61314838,3487.2,3485.4,0.55]
[1718957164015,3.7545,3487.5,3485.4,0.55]
[1718957164016,0.61373584,3487.1,3485.5,3.7657]
[1718957164228,0.49679744,3487.3,3485.6,0.37956208]
[1718957164403,0.61373434,3487.2,3485.6,0.37956208]
[1718957164603,0.61373434,3487.1,3485.7,0.44443529]
[1718957164807,3.7545,3487.5,3485.7,0.44443529]
[1718957164808,0.49682411,3487.3,3485.7,0.44443529]
[1718957165033,0.61374525,3487.2,3485.7,0.44443529]
[1718957165241,0.61374525,3487.1,3485.7,0.41452621]
[1718957165441,0.61374525,3487.0,3485.7,0.41452621]
[1718957165645,0.49682411,3487.3,3485.7,0.41452621]
[1718957165803,0.61360892,3487.2,3485.7,0.41452621]
[1718957166204,0.61360892,3487.2,3485.5,3.7657]
[1718957166205,3.63960892,3487.2,3485.5,3.7657]
[1718957166509,3.026,3487.0,3485.5,3.7657]
[1718957166736,4.13647131,3486.9,3485.5,3.7657]
[1718957166952,7.13647131,3486.8,3485.5,3.7657]
[1718957167150,4.13647131,3486.7,3485.5,3.7657]
[1718957167464,4.13647131,3486.7,3483.8,2.2963]
[1718957167465,10.81927131,3486.6,3484.0,3.5922]
[1718957167659,3.026,3486.4,3485.6,0.02863611]
[1718957167865,3.026,3486.2,3484.2,3.5922]
[1718957168157,3.026,3486.0,3485.7,0.02863611]
[1718957168367,4.13647131,3485.9,3484.2,3.5922]
[1718957168652,1.11047131,3485.8,3484.3,0.35922]
[1718957168943,0.61360892,3485.7,3484.3,0.35922]
[1718957169141,4.11047131,3485.7,3484.3,0.35922]
[1718957169446,1.11047131,3485.6,3484.4,0.02863611]
[1718957169742,0.49702559,3485.5,3484.4,0.42664172]
[1718957169935,1.11063451,3485.6,3484.4,0.42664172]
[1718957170319,0.61360892,3485.6,3484.4,0.42664172]
[1718957170543,1.11063451,3485.6,3484.4,0.02863611]
[1718957170732,0.61360892,3485.5,3484.4,0.02863611]
[1718957171154,4.11063451,3485.5,3484.2,3.5922]
[1718957171458,5.11063451,3485.4,3484.2,3.5922]
[1718957171615,4.11063451,3485.3,3484.2,3.5922]
[1718957171816,4.11063451,3485.3,3483.3,3.4784]
[1718957171817,1.11063451,3485.2,3483.3,3.4784]
[1718957172018,3.63960892,3485.1,3484.3,0.02863611]
[1718957172354,3.0,3485.3,3483.3,3.4784]
[1718957172355,3.026,3484.9,3483.3,3.4784]
[1718957172521,7.72583451,3484.8,3483.3,3.4784]
[1718957172716,6.63960892,3484.7,3483.3,3.4784]
[1718957172946,0.61360892,3484.6,3483.3,3.4784]
[1718957173122,0.61360892,3484.6,3483.3,3.82624]
[1718957173319,1.11080005,3484.6,3483.3,3.82624]
[1718957173513,0.61360892,3484.5,3483.4,0.02979431]
[1718957175716,0.49719113,3484.6,3483.4,0.02979431]
[1718957175917,0.49713324,3485.1,3483.3,3.82624]
[1718957176233,0.61213328,3485.0,3483.4,0.382624]
[1718957176568,0.61213328,3485.0,3483.5,0.02979431]
[1718957177372,3.7269,3484.9,3483.5,0.02979431]
[1718957177671,1.10926652,3484.8,3483.5,3.5666]
[1718957177976,3.49713324,3484.8,3483.5,3.5666]
[1718957178133,0.49713324,3484.7,3483.5,3.5666]
[1718957178468,0.49713324,3484.7,3483.6,0.38557623]
[1718957178631,0.49713324,3484.7,3483.6,0.35666]
[1718957178832,3.0,3485.1,3483.6,0.35666]
[1718957179032,1.10956403,3485.0,3483.6,0.35666]
[1718957179274,0.61243625,3484.9,3483.6,0.35666]
[1718957180868,0.61243625,3484.9,3483.7,0.392326]
[1718957181880,0.49712778,3484.9,3483.7,0.392326]
[1718957182081,3.0,3485.3,3483.7,0.392326]
[1718957182370,0.61239309,3485.2,3483.7,0.392326]
[1718957182572,0.61239309,3485.2,3483.5,3.5666]
[1718957182573,1.10947781,3485.2,3483.8,0.3958926]
[1718957182789,0.61239309,3485.1,3483.8,0.3958926]
[1718957182967,0.49708472,3485.2,3483.9,3.7666]
[1718957183279,0.49701544,3485.2,3483.9,3.79551623]
[1718957185176,0.49700426,3485.2,3483.9,3.79551623]
[1718957185542,3.6356,3486.5,3484.1,3.5601]
[1718957185737,3.0,3486.2,3484.3,3.5601]
[1718957185942,4.1098373,3486.1,3484.3,3.5601]
[1718957186144,1.1098373,3486.0,3484.4,0.68492623]
[1718957186354,0.6128774,3485.9,3484.4,0.68492623]
[1718957186558,0.6128774,3485.8,3484.4,0.68492623]
[1718957186839,0.61289492,3485.7,3484.4,0.68492623]
[1718957187040,3.026,3486.1,3484.4,0.02891623]
[1718957187241,4.13607647,3486.0,3484.4,0.02891623]
[1718957187541,3.026,3485.6,3484.3,3.5601]
[1718957187741,1.11007647,3485.5,3484.3,3.5601]
[1718957187965,0.61311657,3485.4,3484.3,3.91611]
[1718957188167,0.49698895,3485.5,3484.3,3.91611]
[1718957188379,0.49698895,3486.1,3484.4,0.02872063]
[1718957188576,1.16294718,3486.0,3484.4,0.02872063]
[1718957188764,1.10993613,3485.9,3484.3,3.91611]
[1718957189093,0.61294718,3485.8,3484.3,3.91611]
[1718957189242,4.10993613,3485.8,3484.3,3.91611]
[1718957189439,1.10993613,3485.7,3484.3,3.91611]
[1718957189644,0.61294718,3485.6,3484.4,0.42033163]
[1718957190080,0.49698895,3485.7,3484.4,0.42033163]
[1718957191181,0.49698895,3485.7,3484.5,3.5081]
[1718957191387,0.49694729,3485.7,3484.5,3.5081]
[1718957191553,3.52294281,3486.3,3484.6,0.39284316]
[1718957191754,7.13604847,3486.2,3484.6,0.02872063]
[1718957191974,4.11004847,3486.1,3484.5,3.5081]
[1718957192282,1.11004847,3486.0,3484.5,3.5081]
[1718957192451,0.61306809,3485.9,3484.6,0.02872063]
[1718957192956,0.61322026,3485.8,3484.6,0.02872063]
[1718957193140,0.61322026,3485.7,3484.6,0.02872063]
[1718957193454,0.49698038,3485.8,3484.6,0.43769369]
[1718957193655,0.6130061,3485.7,3484.6,0.43769369]
[1718957193873,3.0,3486.3,3484.6,0.43769369]
[1718957193874,0.49698038,3486.0,3484.6,0.43769369]
[1718957194082,0.61297955,3485.9,3484.7,0.44987037]
[1718957194259,0.61297955,3485.8,3484.7,0.44987037]
[1718957194464,3.0,3486.3,3484.8,0.02872063]
[1718957194666,0.49694826,3486.1,3484.8,0.02872063]
[1718957194858,0.61298285,3486.0,3484.8,0.48268073]
[1718957195074,0.61298285,3485.9,3484.8,0.48268073]
[1718957195294,0.61298285,3485.8,3484.8,0.48268073]
[1718957195446,0.49694826,3486.2,3484.8,0.48268073]
[1718957195646,0.61313126,3486.1,3484.8,0.48268073]
[1718957196383,0.61313126,3486.1,3484.8,0.02872063]
[1718957196584,4.11007952,3486.1,3484.8,0.02872063]
[1718957196762,1.11007952,3486.0,3484.5,4.06101]
[1718957196965,0.61313126,3485.9,3484.5,4.06101]
[1718957197164,0.61313126,3485.9,3484.6,0.43201339]
[1718957197753,0.61313126,3485.8,3484.6,0.43201339]
[1718957197957,0.61313126,3485.7,3484.6,0.43201339]
[1718957198154,0.61313126,3485.6,3484.6,0.43201339]
[1718957198393,0.61313126,3485.5,3484.7,0.44930234]
[1718957198552,0.61313126,3485.4,3484.7,0.44930234]
[1718957198752,0.49697545,3486.0,3484.7,0.44930234]
[1718957198988,0.61284483,3485.9,3484.8,0.02591239]
[1718957200472,4.14464483,3485.9,3484.5,3.5081]
[1718957200672,3.61284483,3485.8,3484.6,0.02591239]
[1718957200899,0.61284483,3485.7,3484.6,0.02591239]
[1718957201284,0.61284483,3485.6,3484.6,0.02591239]
[1718957201489,0.61284483,3485.5,3484.6,0.02591239]
[1718957201798,0.61284483,3485.4,3484.7,0.40869224]
[1718957202099,3.0,3486.1,3484.5,4.06101]
[1718957202100,0.61284483,3485.3,3484.5,4.06101]
[1718957202261,0.49698035,3486.0,3484.6,0.02591239]
[1718957202463,0.61294196,3485.9,3484.6,0.02591239]
[1718957203996,0.61294196,3485.8,3484.6,0.02591239]
[1718957204202,0.61294196,3485.7,3484.6,0.43460463]
[1718957204376,0.61294196,3485.6,3484.6,0.43460463]
[1718957204571,0.61294196,3485.5,3484.6,0.43460463]
[1718957204779,0.61294196,3485.4,3484.6,0.43460463]
[1718957205098,0.61294196,3485.3,3484.7,0.44956146]
[1718957205399,0.49697227,3486.0,3484.8,0.02584982]
[1718957205602,0.61292831,3485.9,3484.8,0.02584982]
[1718957206765,6.04296076,3485.9,3484.8,0.02584982]
[1718957206966,1.10994355,3485.8,3484.5,3.5081]
[1718957207264,0.61292831,3485.7,3484.6,0.02584982]
[1718957207993,0.61292831,3485.7,3484.5,3.5081]
[1718957208190,0.61292831,3485.7,3484.5,3.85891]
[1718957208399,0.61292831,3485.7,3484.6,0.02565425]
[1718957210174,1.10993855,3485.7,3484.6,0.02565425]
[1718957210484,5.43189768,3485.9,3484.6,0.02565425]
[1718957210485,0.61292831,3485.6,3484.6,0.02565425]
[1718957210706,0.61292831,3485.5,3484.6,0.02565425]
[1718957210885,0.61292831,3485.4,3484.6,0.02565425]
[1718957211231,0.61292831,3485.3,3484.6,0.02565425]
[1718957211459,0.61292831,3485.2,3484.6,0.02565425]
[1718957211722,0.61292831,3485.1,3484.6,0.02565425]
[1718957211933,2.43203949,3485.8,3484.6,0.02565425]
[1718957211934,0.61292831,3485.0,3484.6,0.02565425]
[1718957212136,3.49700429,3485.7,3484.6,0.02565425]
[1718957212137,0.61281079,3484.9,3484.6,0.02565425]
[1718957212303,0.49700429,3485.5,3484.6,0.02565425]
[1718957212506,1.10981614,3485.4,3484.6,0.02565425]
[1718957212830,4.13581614,3485.3,3484.6,0.02565425]
[1718957212989,4.45303949,3485.0,3483.6,11.0365]
[1718957213190,4.45303949,3485.0,3483.6,3.6665]
[1718957213191,0.61281185,3484.9,3483.6,3.6665]
[1718957213428,2.9306225,3484.8,3483.6,3.6665]
[1718957213623,1.1099654,3484.7,3483.6,3.6665]
[1718957213921,1.1099654,3484.6,3483.6,3.6665]
[1718957214128,1.1099654,3484.5,3483.6,3.6665]
[1718957214314,0.61281185,3484.4,3483.6,3.6665]
[1718957214620,0.49715355,3484.6,3483.6,3.6665]
[1718957214621,0.61281185,3484.3,3483.6,3.6665]
[1718957214825,0.61281185,3484.2,3483.6,3.6665]
[1718957215029,0.61281185,3484.1,3483.6,3.6665]
[1718957215186,0.61281185,3484.0,3483.6,3.6665]
[1718957215391,0.49715355,3484.6,3483.6,3.6665]
[1718957215592,0.61214625,3484.5,3483.6,3.6665]
[1718957216630,1.10929579,3484.5,3483.6,3.6665]
[1718957216788,1.10929579,3484.4,3483.6,3.6665]
[1718957216993,0.61214625,3484.3,3483.6,3.6665]
[1718957217196,0.61214625,3484.2,3483.6,3.6665]
[1718957217394,0.61214625,3484.1,3483.6,3.6665]
[1718957217697,0.61214625,3484.0,3483.6,3.6665]
[1718957217902,0.49714954,3484.6,3483.6,3.6665]
[1718957218127,0.61217406,3484.5,3483.6,3.6665]
[1718957218335,0.60071394,3484.5,3483.6,3.6665]
[1718957219701,3.60071394,3484.5,3483.6,3.6665]
[1718957220028,0.49719281,3484.4,3483.6,3.6665]
[1718957220225,3.0,3484.5,3483.6,3.6665]
[1718957220426,0.49720856,3484.4,3483.6,3.6665]
[1718957220749,2.43226472,3484.4,3483.2,3.4377]
[1718957220911,3.49720856,3484.5,3483.2,3.4377]
[1718957220912,3.0,3484.5,3483.2,3.4377]
[1718957221112,2.43209287,3484.3,3483.2,3.4377]
[1718957221322,0.49722546,3484.2,3483.2,3.4377]
[1718957221740,3.49722546,3484.2,3483.2,3.4377]
[1718957222111,0.49724751,3484.1,3483.2,3.4377]
[1718957222518,0.49724751,3484.1,3483.2,4.51847]
[1718957222916,0.49724751,3484.1,3483.2,3.4377]
[1718957224743,3.0,3484.3,3483.2,3.4377]
[1718957224744,2.51824751,3484.2,3483.2,3.4377]
[1718957224946,2.51824751,3484.2,3482.5,7.37]
[1718957224947,5.92704692,3484.1,3482.6,3.6849]
[1718957225162,4.0,3483.9,3482.6,3.6849]
[1718957225453,3.4972967,3483.8,3482.6,3.6849]
[1718957225646,0.4972967,3483.7,3482.6,4.79039]
[1718957226054,0.4972967,3483.7,3482.6,3.6849]
[1718957228235,0.49726165,3483.7,3482.6,3.6849]
[1718957228639,3.0,3483.8,3482.6,3.6849]
[1718957228844,0.49726009,3483.7,3482.6,3.6849]
[1718957229951,0.49723549,3483.7,3482.6,3.6849]
[1718957230180,0.49723549,3484.1,3482.8,3.717]
[1718957230341,0.49723549,3484.1,3481.1,3.6777]
[1718957230342,2.021,3482.9,3481.1,3.6777]
[1718957230524,0.49723549,3482.8,3481.2,0.36777]
[1718957230921,3.49723549,3482.8,3481.2,0.36777]
[1718957231140,0.49723549,3482.7,3481.2,0.36777]
[1718957231326,0.49747526,3482.7,3481.2,0.36777]
[1718957231541,0.49747526,3482.7,3481.3,0.404547]
[1718957232951,4.0,3482.6,3481.3,0.404547]
[1718957233130,3.49747526,3482.5,3481.4,3.5327]
[1718957233329,3.0,3482.5,3481.4,3.5327]
[1718957233559,3.0,3482.5,3481.5,0.3937247]
[1718957234573,3.678,3483.2,3481.5,0.3937247]
[1718957234574,3.0,3483.1,3481.5,0.3937247]
[1718957234714,0.49742425,3483.0,3481.5,0.3937247]
[1718957234919,0.49742425,3483.0,3481.6,3.5457]
[1718957235118,0.49742425,3483.1,3481.6,3.5457]
[1718957235357,3.49742425,3483.6,3481.6,3.5457]
[1718957235536,2.51842425,3483.5,3481.6,3.5457]
[1718957235733,3.0,3483.4,3481.7,0.55667]
[1718957236046,0.49738717,3483.3,3481.7,0.55667]
[1718957236216,3.49738717,3483.4,3481.7,0.55667]
[1718957236422,0.49738717,3483.3,3481.8,0.410237]
[1718957237188,3.49738717,3483.4,3481.8,0.410237]
[1718957237349,3.0,3483.4,3481.8,0.410237]
[1718957237544,2.021,3483.5,3481.1,9.391]
[1718957237545,3.516,3483.2,3481.1,9.391]
[1718957237783,3.026,3482.7,3480.3,3.4374]
[1718957237995,2.021,3482.2,3480.4,0.34374]
[1718957238146,0.49756953,3482.1,3480.4,0.34374]
[1718957238351,3.49756953,3482.1,3480.4,0.34374]
[1718957238656,3.49756953,3482.1,3480.5,0.378114]
[1718957238657,4.49756953,3482.0,3480.5,0.378114]
[1718957238973,3.49756953,3481.9,3480.5,0.378114]
[1718957239172,0.49756953,3481.8,3480.5,0.378114]
[1718957240497,0.49758148,3481.8,3480.5,0.378114]
[1718957240653,0.49758148,3481.8,3480.6,0.3815514]
[1718957240854,2.021,3481.6,3480.3,3.4374]
[1718957241055,0.49758148,3481.5,3480.3,3.4374]
[1718957241283,3.49758148,3481.5,3480.3,3.4374]
[1718957241506,2.021,3481.2,3480.3,3.4374]
[1718957242005,2.021,3481.2,3479.9,3.5015]
[1718957242006,0.49758148,3481.1,3479.9,3.5015]
[1718957242156,3.49758148,3481.1,3480.0,0.35015]
[1718957242361,0.49758148,3481.0,3480.0,0.35015]
[1718957242582,2.021,3480.8,3480.0,0.35015]
[1718957242907,0.49758148,3480.7,3479.2,3.5015]
[1718957243370,0.49773937,3480.7,3479.2,3.5015]
[1718957244495,3.49773937,3480.7,3479.2,3.5015]
[1718957244791,0.49773937,3480.6,3479.2,3.5015]
[1718957244994,0.49773937,3480.6,3479.3,0.35015]
[1718957246504,0.49776107,3480.6,3479.3,0.35015]
[1718957246865,0.49775371,3480.6,3479.3,0.35015]
[1718957247195,3.0,3480.7,3479.3,0.35015]
[1718957247499,2.021,3480.8,3479.3,0.35015]
[1718957247712,0.49774579,3480.7,3479.4,0.385165]
[1718957247919,3.49774579,3480.7,3479.4,0.385165]
[1718957248198,0.49774579,3480.6,3479.4,0.385165]
[1718957248563,2.021,3480.4,3479.2,3.5015]
[1718957248760,0.49774579,3480.3,3479.2,3.5015]
[1718957248964,3.49774579,3480.3,3479.2,3.5015]
[1718957249206,0.49774579,3480.2,3479.2,3.5015]
[1718957249390,3.0,3480.3,3479.2,3.5015]
[1718957249698,0.49784868,3480.2,3478.7,3.5375]
[1718957249999,4.0,3480.1,3478.9,1.09075]
[1718957250304,3.49784868,3480.0,3478.9,1.09075]
[1718957250603,0.49784868,3479.9,3478.9,1.09075]
[1718957250770,0.49784868,3479.9,3478.7,3.5375]
[1718957251363,3.0,3480.0,3478.7,3.5375]
[1718957251559,3.0,3480.0,3478.2,11.136]
[1718957251560,3.026,3479.8,3478.2,11.136]
[1718957251802,0.49789177,3479.7,3478.2,3.766]
[1718957252167,0.49789177,3479.9,3478.3,0.3766]
[1718957252519,2.021,3479.6,3478.3,0.3766]
[1718957252700,0.49792266,3479.5,3478.2,3.766]
[1718957253020,3.49792266,3479.5,3478.2,3.766]
[1718957253188,0.49792266,3479.4,3478.2,3.766]
[1718957253377,0.49796003,3479.4,3478.2,3.766]
[1718957253575,4.0,3479.3,3478.2,3.766]
[1718957253810,3.49797881,3479.2,3478.2,3.766]
[1718957254029,3.0,3479.2,3478.2,4.1426]
[1718957254679,3.0,3480.6,3478.2,4.1426]
[1718957254877,3.49791177,3480.0,3478.2,4.1426]
[1718957255090,3.0,3480.0,3478.2,4.1426]
[1718957255312,0.4978704,3479.9,3478.2,4.1426]
[1718957255527,2.021,3479.7,3478.3,0.28257742]
[1718957256093,0.49792355,3479.6,3478.3,0.28257742]
[1718957256290,3.49792355,3479.6,3478.3,0.28257742]
[1718957256635,3.0,3479.6,3478.3,0.28257742]
[1718957256917,3.0,3479.8,3478.3,0.28257742]
[1718957257093,0.49793338,3479.7,3478.3,0.28257742]
[1718957257499,0.49793338,3479.7,3478.2,3.766]
[1718957257705,0.49793338,3479.7,3478.4,0.02564775]
[1718957257921,0.49793338,3479.7,3478.3,0.02819305]
[1718957258095,0.49793338,3479.7,3478.2,3.766]
[1718957258279,0.49793338,3479.7,3478.5,0.02819305]
[1718957258682,0.49793338,3479.7,3478.2,3.766]
[1718957258683,0.49794129,3479.7,3478.6,0.02819305]
[1718957259106,0.49794129,3479.7,3478.2,3.766]
[1718957259309,0.49794129,3479.7,3478.7,0.02819305]
[1718957259515,5.047,3479.5,3478.2,3.766]
[1718957259831,3.49794129,3479.4,3478.8,0.02819305]
[1718957260031,0.49794129,3479.3,3478.2,3.766]
[1718957260202,0.49794129,3479.3,3478.9,0.02819305]
[1718957260388,0.49794129,3479.3,3478.2,3.766]
[1718957260593,0.49794129,3479.3,3479.0,0.02734753]
[1718957260788,3.0,3479.4,3478.2,4.1426]
[1718957261115,2.021,3479.5,3479.1,0.02738183]
[1718957261308,0.4979157,3479.4,3478.2,4.1426]
[1718957261511,3.4979157,3479.4,3478.3,0.44164183]
[1718957261696,0.49792333,3479.3,3478.3,0.44164183]
[1718957261898,3.0,3479.7,3478.3,0.44164183]
[1718957262193,0.49791502,3479.6,3478.3,0.02738183]
[1718957262626,3.4987,3478.8,3478.3,0.02738183]
[1718957262936,2.021,3478.5,3477.7,0.0232223]
[1718957263615,0.49803753,3478.4,3477.7,0.0232223]
[1718957263804,7.49804177,3478.4,3477.7,0.0232223]
[1718957264128,7.0,3478.4,3477.7,0.0232223]
[1718957264299,0.49805671,3478.3,3477.7,0.0232223]
[1718957264811,0.49806859,3478.3,3477.7,0.0232223]
[1718957265018,7.0,3478.4,3477.7,0.0232223]
[1718957265347,8.5333,3478.1,3477.7,0.0232223]
[1718957265497,0.49804195,3478.0,3477.7,0.0232223]
[1718957265702,3.49804195,3478.0,3476.2,7.37]
[1718957266031,4.49804195,3477.9,3476.3,2.77642813]
[1718957266207,3.49804195,3477.8,3476.3,2.77642813]
[1718957266541,0.49804195,3477.7,3476.3,2.77642813]
[1718957266738,1.34728291,3477.1,3476.3,2.77642813]
[1718957266950,1.34728291,3477.1,3476.4,0.27764281]
[1718957267112,1.34728291,3476.9,3476.4,0.27764281]
[1718957267843,3.0,3477.8,3476.4,0.27764281]
[1718957268043,1.34715224,3476.9,3476.4,0.27764281]
[1718957268846,1.34715224,3476.9,3476.5,0.30540709]
[1718957269640,1.84528296,3476.8,3476.5,0.30540709]
[1718957269837,1.34715224,3476.8,3476.5,0.30540709]
[1718957270045,1.34715224,3476.6,3476.0,90.52286941]
[1718957270342,3.0,3477.8,3476.0,90.52286941]
[1718957270343,1.34715224,3476.4,3476.0,90.52286941]
[1718957270546,3.0,3477.8,3476.0,86.81646941]
[1718957270547,0.49813072,3476.3,3476.0,86.81646941]
[1718957270700,3.7044,3476.9,3476.0,86.81646941]
[1718957271038,3.49829574,3476.8,3476.0,86.81646941]
[1718957271234,0.49829574,3476.7,3476.0,86.81646941]
[1718957271803,0.49829574,3476.7,3476.1,2.77642813]
[1718957271999,1.3468008,3476.2,3476.1,2.77642813]
[1718957272215,1.34684204,3476.2,3476.1,2.77642813]
[1718957272847,0.49829574,3476.2,3476.1,2.77642813]
[1718957273005,1.34684204,3476.3,3476.1,2.77642813]
[1718957273205,1.34684204,3476.2,3476.1,2.77642813]
[1718957273438,2.51929574,3477.3,3476.0,86.81646941]
[1718957273737,1.34678729,3476.1,3476.0,86.81646941]
[1718957273896,0.49825259,3476.1,3476.0,86.81646941]
[1718957274099,1.34682267,3476.1,3476.0,86.81646941]
[1718957274338,3.6745,3476.8,3476.0,86.81646941]
[1718957274547,0.49832189,3476.1,3476.0,86.81646941]
[1718957274759,3.49832189,3476.7,3476.0,86.81646941]
[1718957274932,0.49832189,3476.6,3476.0,86.81646941]
[1718957276325,4.0,3476.1,3476.0,86.81646941]
[1718957276516,7.49832189,3476.1,3476.0,86.81646941]
[1718957276967,7.0,3476.1,3476.0,86.81646941]
[1718957277119,7.49839367,3476.1,3476.0,86.81646941]
[1718957277522,13.63179367,3476.1,3476.0,86.53876384]
[1718957277716,13.08179367,3476.1,3476.0,86.53876384]
[1718957277970,11.06079367,3476.1,3476.0,86.53876384]
[1718957278532,17.65599967,3476.1,3476.0,86.53876384]
[1718957278869,11.06079367,3476.1,3476.0,86.53876384]
[1718957280056,22.599607,3476.1,3476.0,86.53876384]
[1718957280367,23.09805928,3476.1,3476.0,86.53876384]
[1718957280579,14.63685228,3476.1,3476.0,86.53876384]
[1718957281636,28.72724628,3476.1,3476.0,86.53876384]
[1718957281957,25.73769528,3476.1,3476.0,86.53876384]
[1718957282158,16.80919028,3476.1,3476.0,86.53876384]
[1718957282374,16.310738,3476.1,3476.0,86.53876384]
[1718957282582,17.30766981,3476.1,3476.0,86.53876384]
[1718957282789,13.73166981,3476.1,3476.0,86.53876384]
[1718957283076,7.99687805,3476.1,3476.0,86.53876384]
[1718957283275,10.01787805,3476.1,3476.0,86.53876384]
[1718957283573,13.77341805,3476.1,3476.0,86.53876384]
[1718957284045,16.79941805,3476.1,3476.0,86.53876384]
[1718957284246,17.34941805,3476.1,3476.0,86.53876384]
[1718957285582,17.34947274,3476.1,3476.0,85.76806384]
[1718957285937,21.13277274,3476.1,3476.0,85.76806384]
[1718957287136,22.85877274,3476.1,3476.0,84.23167384]
[1718957287873,22.85877274,3476.1,3476.0,84.25691243]
[1718957288572,21.13282873,3476.1,3476.0,78.40716243]
[1718957288779,24.13282873,3476.1,3476.0,74.48616243]
[1718957289073,24.13282873,3476.1,3476.0,74.39961981]
[1718957289794,21.13282873,3476.1,3476.0,74.39961981]
[1718957290002,11.02298873,3476.1,3476.0,74.39961981]
[1718957290208,8.7205446,3476.1,3476.0,80.87884794]
[1718957290408,4.6737924,3476.1,3476.0,80.87884794]
[1718957290721,6.02098697,3476.1,3476.0,77.17604794]
[1718957290869,4.67379712,3476.1,3476.0,77.17604794]
[1718957291069,0.49846466,3476.1,3476.0,77.17604794]
[1718957292521,0.49846466,3476.1,3476.0,74.39961981]
[1718957292883,0.99673681,3476.1,3476.0,74.39961981]
[1718957293082,0.49846466,3476.1,3476.0,74.39961981]
[1718957293421,1.8458767,3476.1,3476.0,74.39961981]
[1718957293567,0.49846466,3476.1,3476.0,74.39961981]
[1718957293770,0.49846466,3476.1,3476.0,82.95334794]
[1718957294026,1.34741204,3476.7,3476.0,82.95334794]
[1718957294224,1.34741204,3477.0,3476.0,82.95334794]
[1718957294532,5.021,3478.4,3476.5,3.7563]
[1718957294533,3.0,3478.4,3476.5,3.7563]
[1718957294815,1.34806552,3477.1,3476.6,0.60405081]
[1718957295006,3.026,3478.2,3476.6,0.02632081]
[1718957295179,0.74999999,3478.9,3476.6,0.02632081]
[1718957295180,6.7826,3477.9,3476.6,0.02632081]
[1718957295395,3.026,3477.7,3476.0,74.37438122]
[1718957295597,1.34791258,3476.5,3476.1,2.80263123]
[1718957296138,3.5241668,3477.6,3476.1,2.80263123]
[1718957296139,1.34791258,3476.3,3476.1,0.0262031]
[1718957296325,0.4981668,3476.4,3476.1,0.0262031]
[1718957296629,2.021,3477.2,3476.1,0.0262031]
[1718957296630,3.4981668,3476.7,3476.1,0.0262031]
[1718957296780,3.0,3477.3,3476.1,0.0262031]
[1718957296781,0.4981668,3476.6,3476.1,0.0262031]
[1718957296984,0.4981668,3477.0,3476.1,0.0262031]
[1718957297304,0.4981668,3477.1,3476.1,0.0262031]
[1718957297688,0.49826571,3477.4,3476.1,0.0262031]
[1718957297880,3.49826571,3477.5,3476.2,3.6292]
[1718957298080,1.3479048,3476.6,3476.2,6.40562813]
[1718957298317,1.3479048,3476.7,3476.3,0.02604225]
[1718957298524,1.3479048,3476.8,3476.3,0.02604225]
[1718957298805,1.84607143,3476.7,3476.3,0.40037996]
[1718957299005,1.3479048,3476.8,3476.4,0.02564177]
[1718957299415,1.3479048,3476.8,3476.2,6.40562813]
[1718957299582,1.3479048,3476.8,3476.3,0.02564177]
[1718957299925,0.49816056,3477.8,3476.3,2.77642813]
[1718957299926,1.84607848,3476.7,3476.3,2.77642813]
[1718957300205,1.3479048,3476.8,3476.4,0.02564177]
[1718957300405,1.3479048,3476.8,3476.2,6.40562813]
[1718957300708,1.3479048,3476.6,3476.3,0.02564177]
[1718957300911,0.49820543,3476.5,3476.3,0.02564177]
[1718957301119,1.84741086,3476.5,3476.2,3.6292]
[1718957301336,1.84741086,3476.5,3476.4,0.02553978]
[1718957301337,1.34930311,3476.5,3476.4,0.02553978]
[1718957301622,0.49819451,3476.5,3476.4,0.02553978]
[1718957301827,1.34930311,3476.7,3476.2,3.6292]
[1718957301986,1.34932554,3476.6,3476.3,0.02559862]
[1718957302193,1.34932554,3476.9,3476.2,6.40562813]
[1718957302407,1.34932554,3476.9,3476.3,0.02559862]
[1718957302718,1.34932554,3477.0,3476.3,0.02559862]
[1718957302925,1.34932554,3477.1,3476.3,0.02559862]
[1718957303221,1.34932554,3477.2,3476.4,0.36547986]
[1718957303425,1.34932554,3477.3,3476.4,0.36547986]
[1718957303631,1.84744511,3477.2,3476.5,0.02559862]
[1718957303921,1.34974495,3477.2,3476.5,0.42762647]
[1718957304126,1.34974495,3477.3,3476.6,3.6498]
[1718957304291,1.34974495,3477.6,3476.6,3.6498]
[1718957304487,3.6833,3479.1,3476.9,2.707]
[1718957304488,1.34974495,3477.8,3476.9,2.707]
[1718957304683,1.34974495,3477.8,3477.1,3.6677]
[1718957304990,1.34974495,3477.5,3477.2,0.02539859]
[1718957305190,1.34974495,3477.6,3477.2,0.02539859]
[1718957305418,1.34974495,3477.5,3477.2,0.02539859]
[1718957305731,5.43552,3477.4,3476.0,74.37438122]
[1718957305897,1.34928147,3476.5,3476.0,74.37438122]
[1718957306097,1.8474967,3476.4,3476.0,74.37438122]
[1718957306297,1.34928147,3476.5,3476.0,74.37438122]
[1718957306535,0.49821523,3476.4,3476.0,74.37438122]
[1718957306690,1.34928147,3476.5,3476.0,77.15080935]
[1718957306893,1.3494232,3476.8,3476.1,3.428]
[1718957307206,5.70173483,3478.7,3476.3,2.707]
[1718957307207,1.3494232,3477.3,3476.3,2.707]
[1718957307400,1.3494232,3477.5,3476.4,3.428]
[1718957307594,0.49810799,3477.4,3476.5,0.6135]
[1718957307787,1.3494232,3477.5,3476.5,0.6135]
[1718957308399,1.3494232,3477.6,3476.5,0.6135]